Workbook

Sheet 7-11 лет
A1: Школа | B1: МБОУ "Мысовская СОШ" | E1: Отд./корп | I1: День | J1: 2024-04-12
A3: Прием пищи | B3: Раздел | C3: № рец. | D3: Блюдо | E3: Выход, г | F3: Цена | G3: Калорийность | H3: Белки | I3: Жиры | J3: Углеводы
A4: Завтрак | B4: закуска | C4: № 106/2013 | D4: Овощи натуральные | E4: 60 | G4: 12.84 | H4: 0.66 | I4: 0.12 | J4: 2.28
A5: 7-11 лет | B5: 2 блюдо | C5: №376/2013 | D5: Рагу из птицы | E5: 240 | G5: 286.66 | H5: 29.46 | I5: 9.85 | J5: 20.03
B6: гор. Напиток | C6: №459/2018 | D6: Чай с лимоном | E6: 200 | G6: 49.96 | H6: 0.06 | I6: 0.01 | J6: 10.16
B7: хлеб бел. | C7: №108/2013 | D7: Хлеб пшеничный | E7: 30 | G7: 62.38 | H7: 2.28 | I7: 0.24 | J7: 10.35
B8: хлеб черн. | C8: №109/2013 | D8: Хлеб ржаной | E8: 20 | G8: 83.12 | H8: 1.96 | I8: 0.40 | J8: 17.92
E9: 550 | F9: 91.76 | G9: 493.82 | H9: 35.18 | I9: 10.70 | J9: 64.19
A10: Завтрак 2 | B10: мучные изделия | C10: №550/2013 | D10: Шанежка наливная | E10: 60 | G10: 139 | H10: 4 | I10: 3 | J10: 23
A11: ОВЗ | B11: напиток | C11: №508/2013 | D11: Компот из сухофруктов | E11: 200 | G11: 121 | H11: 1 | I11: 0 | J11: 30
E12: 260 | F12: 31.60 | G12: =SUM(G10:G11) -> 260 | H12: =SUM(H10:H11) -> 4 | I12: 3 | J12: 53
A13: Обед | B13: закуска | C13: № 106/2013 | D13: Овощи натуральные (огурец свежий) | E13: 60 | G13: 8.46 | H13: 0.48 | I13: 0.06 | J13: 1.50
A14: 7-11 лет | B14: 1 блюдо | C14: №134/2021 | D14: Суп-пюре из разных овощей | E14: 200 | G14: 135.77 | H14: 4.01 | I14: 5.03 | J14: 18.53
B15: 2 блюдо | C15: №347/2018 | D15: Котлеты "Школьные" | E15: 90 | G15: =257.3 -> 257.30 | H15: =17.57 -> 17.57 | I15: =15.7 -> 15.70 | J15: =11.43 -> 11.43
B16: гарнир | C16: 414/2013 | D16: Рис отварной | E16: 150 | G16: 215.34 | H16: 4.59 | I16: 7.02 | J16: 33.46
B17: напиток | C17: №49/2018 | D17: Компот из кураги | E17: 200 | G17: 85.42 | H17: 1.04 | I17: 0.06 | J17: 20.18
B18: хлеб бел. | C18: №108/2013 | D18: Хлеб пшеничный | E18: 30 | G18: 62.38 | H18: 2.28 | I18: 0.24 | J18: 10.35
B19: хлеб черн. | C19: №109/2013 | D19: Хлеб ржаной | E19: 20 | G19: 83.12 | H19: 1.96 | I19: 0.40 | J19: 17.92
E20: 750 | F20: 91.76 | G20: 828 | H20: 25 | I20: 32 | J20: 109

Sheet 12-18 лет
A1: Школа | B1: МБОУ "Мысовская СОШ" | E1: Отд./корп | I1: День | J1: 2024-04-12
A3: Прием пищи | B3: Раздел | C3: № рец. | D3: Блюдо | E3: Выход, г | F3: Цена | G3: Калорийность | H3: Белки | I3: Жиры | J3: Углеводы
A4: Завтрак | B4: закуска | C4: № 106/2013 | D4: Овощи натуральные | E4: 60 | G4: 12.84 | H4: 0.66 | I4: 0.12 | J4: 2.28
A5: 12-18 лет | B5: 2 блюдо | C5: №376/2013 | D5: Рагу из птицы | E5: 240 | G5: 286.66 | H5: 29.46 | I5: 9.85 | J5: 20.03
B6: гор. Напиток | C6: №459/2018 | D6: Чай с лимоном | E6: 200 | G6: 49.96 | H6: 0.06 | I6: 0.01 | J6: 10.16
B7: хлеб бел. | C7: №108/2013 | D7: Хлеб пшеничный | E7: 30 | G7: 62.38 | H7: 2.28 | I7: 0.24 | J7: 10.35
B8: хлеб черн. | C8: №109/2013 | D8: Хлеб ржаной | E8: 20 | G8: 83.12 | H8: 1.96 | I8: 0.40 | J8: 17.92
E9: 550 | F9: 102.89 | G9: 493.82 | H9: 35.18 | I9: 10.70 | J9: 64.19
A10: Обед | B10: закуска | C10: № 106/2013 | D10: Овощи натуральные (огурец свежий) | E10: 60 | G10: 8.46 | H10: 0.48 | I10: 0.06 | J10: 1.50
A11: 12-18 лет | B11: 1 блюдо | C11: №134/2021 | D11: Суп-пюре из разных овощей | E11: 250 | G11: =135.77/200*250 -> 169.71 | H11: =4.01/200*250 -> 5.01 | I11: =5.03/200*250 -> 6.29 | J11: =18.53/200*250 -> 23.16
B12: 2 блюдо | C12: №347/2018 | D12: Котлеты "Школьные" | E12: 100 | G12: =257.3/90*100 -> 285.89 | H12: =17.57/90*100 -> 19.52 | I12: =15.7/90*100 -> 17.44 | J12: =11.43/90*100 -> 12.70
B13: гарнир | C13: 414/2013 | D13: Рис отварной | E13: 180 | G13: =215.34/150*180 -> 258.41 | H13: =4.59/150*180 -> 5.51 | I13: =7.02/150*180 -> 8.42 | J13: =33.46/150*180 -> 40.15
B14: напиток | C14: №49/2018 | D14: Компот из кураги | E14: 200 | G14: 85.42 | H14: 1.04 | I14: 0.06 | J14: 20.18
B15: хлеб бел. | C15: №108/2013 | D15: Хлеб пшеничный | E15: 30 | G15: 62.38 | H15: 2.28 | I15: 0.24 | J15: 10.35
B16: хлеб черн. | C16: №109/2013 | D16: Хлеб ржаной | E16: 20 | G16: 83.12 | H16: 1.96 | I16: 0.40 | J16: 17.92
E17: =SUM(E10:E16) -> 840 | F17: 102.89 | G17: =SUM(G10:G16) -> 953 | H17: 36 | I17: 33 | J17: 126
A19: Завтрак 2 | B19: мучные изделия | C19: №550/2013 | D19: Шанежка наливная | E19: 60 | G19: 139 | H19: 4 | I19: 3 | J19: 23
A20: ОВЗ | B20: напиток | C20: №508/2013 | D20: Компот из сухофруктов | E20: 200 | G20: 121 | H20: 1 | I20: 0 | J20: 30
E21: 260 | F21: 31.60 | G21: =SUM(G19:G20) -> 260 | H21: =SUM(H19:H20) -> 4 | I21: 3 | J21: 53
